[Event "Marshall CC FIDE Premier February 2024"]
[Site "New York"]
[Date "2024.02.03"]
[Round "2.2"]
[White "Zeltsan, Joseph"]
[Black "Hebbar, Eshaan"]
[Result "1/2-1/2"]
[ECO "A07"]
[WhiteElo "2439"]
[BlackElo "2018"]
[Annotator "RC"]
[PlyCount "210"]
[EventDate "2024.02.02"]
[EventType "swiss"]
[EventCountry "USA"]
[SourceTitle "playchess.com"]
[Source "ChessBase"]
[SourceQuality "1"]
[TimeControl "5400+30"]

1. Nf3 {[%emt 0:00:03]} d5 {[%emt 0:00:10]} 2. g3 {[%emt 0:00:06]} Nf6 {[%emt 0:00:39]} 3. Bg2 {[%emt 0:00:05]} c6 {[%emt 0:01:47]} 4. O-O {[%emt 0:00:44]} Bg4 {[%emt 0:01:26]} 5. h3 {[%emt 0:04:50]} Bxf3 {[%emt 0:04:12]} 6. exf3 {[%emt 0:00:16]} e6 {[%emt 0:01:12]} 7. f4 {[%emt 0:00:44]} Nbd7 {[%emt 0:01:19]} 8. Re1 {[%emt 0:01:21]} Be7 {[%emt 0:01:27]} 9. d3 {[%emt 0:03:26]} O-O {[%emt 0:00:34]} 10. Nd2 {[%emt 0:00:03]} b5 {[%emt 0:06:59]} 11. Nf3 {[%emt 0:02:13]} Rc8 {[%emt 0:03:47]} 12. Qe2 {[%emt 0:10:48]} Re8 {[%emt 0:00:53]} 13. Bd2 {[%emt 0:03:17]} Qb6 {[%emt 0:04:55]} 14. g4 {[%emt 0:25:39]} g6 {[%emt 0:07:21]} 15. c3 {[%emt 0:12:02]} c5 {[%emt 0:01:02]} 16. Ne5 {[%emt 0:06:18]} Nxe5 {[%emt 0:01:30]} 17. fxe5 {[%emt 0:00:02]} Nd7 {[%emt 0:00:02]} 18. Kh1 {[%emt 0:00:23]} d4 {[%emt 0:09:44]} 19. cxd4 {[%emt 0:05:40]} cxd4 {[%emt 0:00:04]} 20. Rec1 {[%emt 0:00:07]} g5 {[%emt 0:05:57]} 21. h4 {[%emt 0:02:36]} h6 {[%emt 0:01:55]} 22. f4 {[%emt 0:00:27]} gxf4 {[%emt 0:00:52]} 23. Bxf4 {[%emt 0:00:31]} Bxh4 {[%emt 0:00:48]} 24. Bxh6 {[%emt 0:03:53]} Rc5 {[%emt 0:29:36]} 25. Bf4 {[%emt 0:08:52]} Rec8 {[%emt 0:01:06]} 26. Rxc5 {[%emt 0:00:11]} Rxc5 {[%emt 0:00:02]} 27. g5 {[%emt 0:02:12]} Nf8 {[%emt 0:02:16]} 28. Be4 {[%emt 0:00:01]} Qa5 {[%emt 0:05:03]} 29. Rg1 {[%emt 0:02:40]} Rc7 {[%emt 0:02:17]} 30. a3 {[%emt 0:03:00]} b4 {[%emt 0:01:20]} 31. Qh2 {[%emt 0:01:24]} Ng6 {[%emt 0:01:08]} 32. axb4 {[%emt 0:00:56]} Qxb4 {[%emt 0:00:42]} 33. Rf1 {[%emt 0:01:09]} Qb3 {[%emt 0:02:06]} 34. Bd2 {[%emt 0:00:33]} Qxb2 {[%emt 0:02:01]} 35. Bxg6 {[%emt 0:00:29]} fxg6 {[%emt 0:00:01]} 36. Qf4 {[%emt 0:00:29]} Qb8 {[%emt 0:01:08]} 37. Kg1 {[%emt 0:00:16]} Rh7 {[%emt 0:00:21]} 38. Qf6 {[%emt 0:00:44]} Qe8 {[%emt 0:00:12]} 39. Bb4 {[%emt 0:00:48]} Rh5 {[%emt 0:00:27]} 40. Bd2 {[%emt 0:00:01]} Rh7 {[%emt 0:00:01]} 41. Kg2 {[%emt 0:00:53]} Rh5 {[%emt 0:01:06]} 42. Rf3 {[%emt 0:00:39]} a5 {[%emt 0:00:23]} 43. Rf1 {[%emt 0:00:30]} a4 {[%emt 0:00:08]} 44. Ra1 {[%emt 0:00:22]} Qc6+ {[%emt 0:00:44]} 45. Qf3 {[%emt 0:00:33]} Qxf3+ {[%emt 0:00:49]} 46. Kxf3 {[%emt 0:01:14]} Bxg5 {[%emt 0:00:12]} 47. Bb4 {[%emt 0:00:00]} Be3 {[%emt 0:00:20]} 48. Bd6 {[%emt 0:00:00]} Rf5+ {[%emt 0:00:35]} 49. Kg4 {[%emt 0:00:00]} Rf4+ {[%emt 0:00:21]} 50. Kg3 {[%emt 0:00:05]} g5 {[%emt 0:01:15]} 51. Rxa4 {[%emt 0:00:06]} Kg7 {[%emt 0:00:13]} 52. Ra8 {[%emt 0:00:54]} Rf5 {[%emt 0:01:04]} 53. Re8 {[%emt 0:00:19]} Bf4+ {[%emt 0:00:47]} 54. Kg4 {[%emt 0:00:01]} Bxe5 {[%emt 0:00:32]} 55. Rxe6 {[%emt 0:00:05]} Rf4+ {[%emt 0:00:04]} 56. Kxg5 {[%emt 0:00:07]} Bxd6 {[%emt 0:00:04]} 57. Rxd6 {[%emt 0:00:04]} Rf1 {[%emt 0:00:48]} 58. Rxd4 {[%emt 0:00:05]} Kf7 {[%emt 0:00:50]} 59. Re4 {[%emt 0:00:03]} Rf3 {[%emt 0:00:43]} 60. d4 {[%emt 0:00:12]} Rd3 {[%emt 0:00:16]} 61. Kf5 {[%emt 0:00:36]} Rf3+ {[%emt 0:00:12]} 62. Kg5 {[%emt 0:00:30]} Rd3 {[%emt 0:00:12]} 63. Kf5 {[%emt 0:00:40]} Rf3+ {[%emt 0:00:02]} 64. Kg4 {[%emt 0:01:28]} Rd3 {[%emt 0:00:10]} 65. Kg5 {[%emt 0:00:04]} Rd1 {[%emt 0:00:31]} 66. Kf5 {[%emt 0:00:18]} Rd2 {[%emt 0:00:26]} 67. Ke5 {[%emt 0:00:21]} Ke7 {[%emt 0:00:09]} 68. Rh4 {[%emt 0:00:51]} Re2+ {[%emt 0:01:04]} 69. Kd5 {[%emt 0:00:02]} Rg2 {[%emt 0:00:45]} 70. Rh7+ {[%emt 0:00:06]} Kd8 {[%emt 0:00:06]} 71. Rh8+ {[%emt 0:02:16]} Kd7 {[%emt 0:00:05]} 72. Rh7+ {[%emt 0:00:05]} Kd8 {[%emt 0:00:01]} 73. Rh6 {[%emt 0:01:14]} Kd7 {[%emt 0:00:05]} 74. Rd6+ {[%emt 0:00:04]} Ke7 {[%emt 0:00:27]} 75. Re6+ {[%emt 0:00:30]} Kd7 {[%emt 0:00:05]} 76. Rd6+ {[%emt 0:00:25]} Ke7 {[%emt 0:00:05]} 77. Rh6 {[%emt 0:00:10]} Kd7 {[%emt 0:00:23]} 78. Rh5 {[%emt 0:00:30]} Rg1 {[%emt 0:00:22]} 79. Rh7+ {[%emt 0:00:07]} Kd8 {[%emt 0:00:02]} 80. Kc5 {[%emt 0:00:39]} Rg5+ {[%emt 0:00:22]} 81. Kd6 {[%emt 0:00:25]} Rg6+ {[%emt 0:00:06]} 82. Ke5 {[%emt 0:00:03]} Rg5+ {[%emt 0:00:12]} 83. Ke6 {[%emt 0:00:04]} Rg6+ {[%emt 0:00:07]} 84. Kf5 {[%emt 0:00:03]} Rg1 {[%emt 0:00:27]} 85. Ke5 {[%emt 0:02:41]} Rg5+ {[%emt 0:00:17]} 86. Kd6 {[%emt 0:01:09]} Rg6+ {[%emt 0:00:06]} 87. Kc5 {[%emt 0:00:02]} Rg5+ {[%emt 0:00:09]} 88. d5 {[%emt 0:00:22]} Rg6 {[%emt 0:00:10]} 89. Ra7 {[%emt 0:00:02]} Rh6 {[%emt 0:00:13]} 90. Rg7 {[%emt 0:00:11]} Rf6 {[%emt 0:00:12]} 91. Kd4 {[%emt 0:00:08]} Rh6 {[%emt 0:00:17]} 92. Rf7 {[%emt 0:00:17]} Ke8 {[%emt 0:00:29]} 93. Rg7 {[%emt 0:00:10]} Kd8 {[%emt 0:00:06]} 94. Rf7 {[%emt 0:00:07]} Ke8 {[%emt 0:00:05]} 95. Ra7 {[%emt 0:00:10]} Kd8 {[%emt 0:00:12]} 96. Kc5 {[%emt 0:00:15]} Rg6 {[%emt 0:00:06]} 97. Rh7 {[%emt 0:00:05]} Rf6 {[%emt 0:00:07]} 98. Kd4 {[%emt 0:00:22]} Rg6 {[%emt 0:00:14]} 99. Ke4 {[%emt 0:00:08]} Rg5 {[%emt 0:01:07]} 100. Rh6 {[%emt 0:00:27]} Kd7 {[%emt 0:00:11]} 101. Kd4 {[%emt 0:00:01]} Rg1 {[%emt 0:00:53]} 102. Rh7+ {[%emt 0:00:09]} Kd6 {[%emt 0:00:09]} 103. Rh6+ {[%emt 0:00:46]} Kd7 {[%emt 0:00:06]} 104. Rh4 {[%emt 0:00:01]} Kd6 {[%emt 0:00:14]} 105. Rh8 {[%emt 0:00:14]} Rg4+ {[%emt 0:00:10]} 1/2-1/2

[Event "Marshall CC FIDE Premier February 2024"]
[Site "New York"]
[Date "2024.02.03"]
[Round "2.3"]
[White "Jiang, Jason"]
[Black "Williams, Justus"]
[Result "1/2-1/2"]
[ECO "A22"]
[WhiteElo "1864"]
[BlackElo "2382"]
[Annotator "RC"]
[PlyCount "66"]
[EventDate "2024.02.02"]
[EventType "swiss"]
[EventCountry "USA"]
[SourceTitle "playchess.com"]
[Source "ChessBase"]
[SourceQuality "1"]
[TimeControl "5400+30"]

1. c4 {[%emt 0:00:09]} e5 {[%emt 0:13:13]} 2. Nc3 {[%emt 0:00:12]} Nf6 {[%emt 0:00:53]} 3. Nf3 {[%emt 0:00:33]} e4 {[%emt 0:01:17]} 4. Ng5 {[%emt 0:01:45]} c6 {[%emt 0:00:30]} 5. Ngxe4 {[%emt 0:00:54]} Nxe4 {[%emt 0:00:10]} 6. Nxe4 {[%emt 0:00:11]} d5 {[%emt 0:00:04]} 7. cxd5 {[%emt 0:00:24]} cxd5 {[%emt 0:00:15]} 8. Ng3 {[%emt 0:00:20]} h5 {[%emt 0:00:08]} 9. e3 {[%emt 0:01:37]} h4 {[%emt 0:01:29]} 10. Bb5+ {[%emt 0:02:35]} Nc6 {[%emt 0:01:08]} 11. Ne2 {[%emt 0:01:00]} h3 {[%emt 0:01:55]} 12. g3 {[%emt 0:02:09]} a6 {[%emt 0:01:03]} 13. Bxc6+ {[%emt 0:03:01]} bxc6 {[%emt 0:00:03]} 14. O-O {[%emt 0:02:43]} Qf6 {[%emt 0:02:33]} 15. f3 {[%emt 0:07:03]} Bd6 {[%emt 0:01:45]} 16. Qc2 {[%emt 0:04:40]} Bd7 {[%emt 0:04:11]} 17. d3 {[%emt 0:19:38]} Rb8 {[%emt 0:07:51]} 18. Rb1 {[%emt 0:02:18]} c5 {[%emt 0:05:51]} 19. e4 {[%emt 0:02:59]} c4 {[%emt 0:03:18]} 20. d4 {[%emt 0:05:43]} dxe4 {[%emt 0:05:30]} 21. fxe4 {[%emt 0:06:16]} Qg6 {[%emt 0:02:52]} 22. Bf4 {[%emt 0:02:04]} Rb4 {[%emt 0:03:34]} 23. Nc3 {[%emt 0:02:53]} O-O {[%emt 0:04:29]} 24. Qd2 {[%emt 0:02:35]} Re8 {[%emt 0:02:46]} 25. Rbe1 {[%emt 0:06:12]} Reb8 {[%emt 0:02:56]} 26. Rb1 {[%emt 0:05:41]} Re8 {[%emt 0:02:15]} 27. Rf2 {[%emt 0:02:33]} Bf8 {[%emt 0:03:17]} 28. Re1 {[%emt 0:01:50]} Rb7 {[%emt 0:01:33]} 29. a3 {[%emt 0:01:24]} Rb3 {[%emt 0:00:41]} 30. d5 {[%emt 0:01:24]} Bc5 {[%emt 0:03:55]} 31. Be3 {[%emt 0:00:14]} Bd6 {[%emt 0:00:19]} 32. Bf4 {[%emt 0:00:15]} Bc5 {[%emt 0:01:39]} 33. Be3 {[%emt 0:00:03]} Bd6 {[%emt 0:00:13]} 1/2-1/2

[Event "Marshall CC FIDE Premier February 2024"]
[Site "New York"]
[Date "2024.02.03"]
[Round "2.4"]
[White "Pressman, Leif"]
[Black "Chen, Derek H"]
[Result "1-0"]
[ECO "B94"]
[WhiteElo "2258"]
[BlackElo "2070"]
[Annotator "RC"]
[PlyCount "185"]
[EventDate "2024.02.02"]
[EventType "swiss"]
[EventCountry "USA"]
[SourceTitle "playchess.com"]
[Source "ChessBase"]
[SourceQuality "1"]
[TimeControl "5400+30"]

1. e4 {[%emt 0:09:42]} c5 {[%emt 0:00:04]} 2. Nf3 {[%emt 0:00:10]} d6 {[%emt 0:00:05]} 3. d4 {[%emt 0:00:21]} cxd4 {[%emt 0:00:04]} 4. Nxd4 {[%emt 0:00:09]} Nf6 {[%emt 0:00:05]} 5. Nc3 {[%emt 0:00:04]} a6 {[%emt 0:00:10]} 6. Bg5 {[%emt 0:00:14]} Nbd7 {[%emt 0:00:06]} 7. Qe2 {[%emt 0:02:26]} e6 {[%emt 0:09:12]} 8. O-O-O {[%emt 0:05:48]} Be7 {[%emt 0:01:52]} 9. f4 {[%emt 0:00:37]} Qc7 {[%emt 0:00:21]} 10. g3 {[%emt 0:00:54]} b5 {[%emt 0:03:26]} 11. Bg2 {[%emt 0:02:03]} Bb7 {[%emt 0:00:08]} 12. Rhe1 {[%emt 0:02:43]} O-O {[%emt 0:02:03]} 13. e5 {[%emt 0:03:05]} dxe5 {[%emt 0:01:19]} 14. fxe5 {[%emt 0:00:29]} Nd5 {[%emt 0:02:26]} 15. Bxe7 {[%emt 0:01:05]} Nxe7 {[%emt 0:00:19]} 16. Bxb7 {[%emt 0:15:49]} Qxb7 {[%emt 0:00:02]} 17. Ne4 {[%emt 0:08:28]} Qc7 {[%emt 0:02:44]} 18. Qh5 {[%emt 0:03:37]} Qxe5 {[%emt 0:17:59]} 19. Ng5 {[%emt 0:02:34]} Nf6 {[%emt 0:00:57]} 20. Qxf7+ {[%emt 0:01:03]} Rxf7 {[%emt 0:00:20]} 21. Rxe5 {[%emt 0:00:03]} Rff8 {[%emt 0:00:39]} 22. Ngxe6 {[%emt 0:08:34]} Rfc8 {[%emt 0:00:35]} 23. Nf4 {[%emt 0:10:51]} Ra7 {[%emt 0:00:57]} 24. Nde6 {[%emt 0:02:38]} Nc6 {[%emt 0:02:12]} 25. Rc5 {[%emt 0:01:08]} Ne4 {[%emt 0:01:19]} 26. Rxc6 {[%emt 0:03:37]} Rxc6 {[%emt 0:00:03]} 27. Rd8+ {[%emt 0:00:15]} Kf7 {[%emt 0:00:04]} 28. Rd4 {[%emt 0:00:15]} Rxe6 {[%emt 0:04:13]} 29. Nxe6 {[%emt 0:00:05]} Kxe6 {[%emt 0:01:05]} 30. Rxe4+ {[%emt 0:00:01]} Kd5 {[%emt 0:02:32]} 31. Rh4 {[%emt 0:00:18]} h6 {[%emt 0:02:11]} 32. a4 {[%emt 0:02:08]} Rf7 {[%emt 0:00:35]} 33. axb5 {[%emt 0:00:28]} axb5 {[%emt 0:00:08]} 34. Kd2 {[%emt 0:03:05]} Rf2+ {[%emt 0:08:24]} 35. Kc3 {[%emt 0:00:24]} Kc5 {[%emt 0:00:03]} 36. Rh5+ {[%emt 0:00:17]} Kc6 {[%emt 0:02:36]} 37. Kb3 {[%emt 0:01:03]} Re2 {[%emt 0:01:08]} 38. Kc3 {[%emt 0:04:27]} Rf2 {[%emt 0:01:56]} 39. b4 {[%emt 0:03:02]} Rg2 {[%emt 0:04:46]} 40. Kd3 {[%emt 0:00:21]} Rf2 {[%emt 0:00:12]} 41. c3 {[%emt 0:01:13]} Rf3+ {[%emt 0:04:42]} 42. Kd4 {[%emt 0:00:02]} Rf2 {[%emt 0:00:18]} 43. Ke3 {[%emt 0:00:07]} Rg2 {[%emt 0:01:07]} 44. Kf3 {[%emt 0:00:45]} Rd2 {[%emt 0:03:39]} 45. Rc5+ {[%emt 0:01:01]} Kb6 {[%emt 0:01:00]} 46. h4 {[%emt 0:00:02]} Rd6 {[%emt 0:07:35]} 47. h5 {[%emt 0:01:15]} g6 {[%emt 0:03:35]} 48. Kg4 {[%emt 0:02:02]} gxh5+ {[%emt 0:03:57]} 49. Kxh5 {[%emt 0:00:04]} Rd3 {[%emt 0:00:25]} 50. Kh4 {[%emt 0:02:44]} Rd1 {[%emt 0:03:48]} 51. g4 {[%emt 0:00:02]} Rh1+ {[%emt 0:00:15]} 52. Kg3 {[%emt 0:00:01]} Rg1+ {[%emt 0:00:49]} 53. Kf3 {[%emt 0:00:03]} Rf1+ {[%emt 0:00:27]} 54. Kg2 {[%emt 0:00:08]} Rd1 {[%emt 0:01:54]} 55. Rf5 {[%emt 0:01:36]} Rd6 {[%emt 0:00:54]} 56. Kg3 {[%emt 0:00:23]} Kc6 {[%emt 0:01:36]} 57. Kf4 {[%emt 0:01:19]} Rg6 {[%emt 0:01:50]} 58. Rc5+ {[%emt 0:00:10]} Kb6 {[%emt 0:00:01]} 59. Kg3 {[%emt 0:00:57]} Rf6 {[%emt 0:00:36]} 60. c4 {[%emt 0:00:52]} bxc4 {[%emt 0:00:04]} 61. Rxc4 {[%emt 0:00:02]} Kb5 {[%emt 0:00:28]} 62. Rd4 {[%emt 0:00:45]} Ra6 {[%emt 0:01:43]} 63. Kh4 {[%emt 0:00:38]} Ra1 {[%emt 0:00:04]} 64. Kh5 {[%emt 0:00:27]} Rh1+ {[%emt 0:00:05]} 65. Kg6 {[%emt 0:00:01]} Rh4 {[%emt 0:00:18]} 66. Rf4 {[%emt 0:01:16]} Ka4 {[%emt 0:00:19]} 67. Kf5 {[%emt 0:00:19]} Kb5 {[%emt 0:00:28]} 68. Re4 {[%emt 0:00:08]} Ka4 {[%emt 0:00:18]} 69. Rf4 {[%emt 0:00:49]} Kb5 {[%emt 0:00:09]} 70. Re4 {[%emt 0:00:58]} Ka4 {[%emt 0:00:06]} 71. Ke5 {[%emt 0:00:17]} Kb5 {[%emt 0:00:17]} 72. Kf4 {[%emt 0:00:11]} Rh1 {[%emt 0:00:41]} 73. Rd4 {[%emt 0:01:20]} Ka4 {[%emt 0:00:46]} 74. Kg3 {[%emt 0:00:10]} Kb5 {[%emt 0:01:01]} 75. Re4 {[%emt 0:00:11]} Ka4 {[%emt 0:00:07]} 76. Kg2 {[%emt 0:00:24]} Rh4 {[%emt 0:00:15]} 77. Kf3 {[%emt 0:00:25]} Kb5 {[%emt 0:01:57]} 78. Kf4 {[%emt 0:00:15]} Rh1 {[%emt 0:00:37]} 79. Kf5 {[%emt 0:00:16]} Rh4 {[%emt 0:01:03]} 80. Rf4 {[%emt 0:00:41]} Ka4 {[%emt 0:00:33]} 81. Re4 {[%emt 0:00:38]} Rh1 {[%emt 0:00:27]} 82. Ke6 {[%emt 0:00:57]} Rh4 {[%emt 0:00:25]} 83. Kd5 {[%emt 0:00:13]} Rh1 {[%emt 0:00:21]} 84. Kc5 {[%emt 0:00:34]} Rb1 {[%emt 0:01:06]} 85. Rc4 {[%emt 0:00:52]} Rb2 {[%emt 0:00:34]} 86. Rc1 {[%emt 0:00:26]} Rg2 {[%emt 0:00:09]} 87. b5 {[%emt 0:00:46]} h5 {[%emt 0:01:06]} 88. Ra1+ {[%emt 0:00:14]} Kb3 {[%emt 0:00:01]} 89. gxh5 {[%emt 0:00:11]} Rg5+ {[%emt 0:00:03]} 90. Kc6 {[%emt 0:00:17]} Rxh5 {[%emt 0:00:02]} 91. b6 {[%emt 0:00:10]} Rh6+ {[%emt 0:00:01]} 92. Kb5 {[%emt 0:00:17]} Rh5+ {[%emt 0:00:11]} 93. Ka6 {[%emt 0:00:08]} 1-0

[Event "Marshall CC FIDE Premier February 2024"]
[Site "New York"]
[Date "2024.02.03"]
[Round "2.5"]
[White "Hughes, John L"]
[Black "Roberts, Aston"]
[Result "1-0"]
[ECO "B31"]
[WhiteElo "2167"]
[BlackElo "1768"]
[Annotator "RC"]
[PlyCount "79"]
[EventDate "2024.02.02"]
[EventType "swiss"]
[EventCountry "USA"]
[SourceTitle "playchess.com"]
[Source "ChessBase"]
[SourceQuality "1"]
[TimeControl "5400+30"]

1. e4 {[%emt 0:03:44]} c5 {[%emt 0:00:04]} 2. Nf3 {[%emt 0:00:17]} Nc6 {[%emt 0:00:04]} 3. Bb5 {[%emt 0:03:25]} g6 {[%emt 0:00:05]} 4. O-O {[%emt 0:00:15]} Bg7 {[%emt 0:00:02]} 5. c3 {[%emt 0:00:57]} e5 {[%emt 0:00:10]} 6. Na3 {[%emt 0:00:51]} Nge7 {[%emt 0:03:43]} 7. Nc4 {[%emt 0:00:11]} d6 {[%emt 0:00:17]} 8. d4 {[%emt 0:00:10]} O-O {[%emt 0:01:36]} 9. d5 {[%emt 0:31:20]} Na5 {[%emt 0:01:41]} 10. Ne3 {[%emt 0:01:25]} a6 {[%emt 0:01:30]} 11. Be2 {[%emt 0:01:10]} b5 {[%emt 0:00:44]} 12. b4 {[%emt 0:09:40]} Nb7 {[%emt 0:00:12]} 13. c4 {[%emt 0:01:37]} cxb4 {[%emt 0:05:43]} 14. cxb5 {[%emt 0:03:39]} Nc5 {[%emt 0:03:35]} 15. Nd2 {[%emt 0:05:02]} axb5 {[%emt 0:11:59]} 16. Bxb5 {[%emt 0:02:35]} Ba6 {[%emt 0:03:24]} 17. Bxa6 {[%emt 0:09:11]} Rxa6 {[%emt 0:00:02]} 18. Nc2 {[%emt 0:00:10]} Rb6 {[%emt 0:16:03]} 19. Rb1 {[%emt 0:06:35]} Qb8 {[%emt 0:07:37]} 20. Nc4 {[%emt 0:00:22]} Rb7 {[%emt 0:02:32]} 21. Qe2 {[%emt 0:04:03]} Rc8 {[%emt 0:06:47]} 22. Bg5 {[%emt 0:04:42]} f6 {[%emt 0:01:56]} 23. Bd2 {[%emt 0:00:28]} b3 {[%emt 0:01:49]} 24. axb3 {[%emt 0:02:11]} Nxb3 {[%emt 0:00:05]} 25. N2a3 {[%emt 0:01:10]} Nxd2 {[%emt 0:18:14]} 26. Qxd2 {[%emt 0:04:18]} Rxb1 {[%emt 0:01:36]} 27. Rxb1 {[%emt 0:00:01]} Qxb1+ {[%emt 0:00:06]} 28. Nxb1 {[%emt 0:00:07]} Rxc4 {[%emt 0:00:03]} 29. f3 {[%emt 0:02:58]} Rd4 {[%emt 0:02:13]} 30. Qc1 {[%emt 0:01:19]} h5 {[%emt 0:04:39]} 31. Na3 {[%emt 0:00:25]} Kh7 {[%emt 0:03:29]} 32. Qc7 {[%emt 0:00:27]} Nxd5 {[%emt 0:00:10]} 33. exd5 {[%emt 0:00:14]} Rxd5 {[%emt 0:00:01]} 34. Nc4 {[%emt 0:01:01]} Rc5 {[%emt 0:03:41]} 35. Qf7 {[%emt 0:00:16]} Rc6 {[%emt 0:00:06]} 36. Ne3 {[%emt 0:00:58]} Kh6 {[%emt 0:01:27]} 37. Nd5 {[%emt 0:00:42]} Rc1+ {[%emt 0:00:23]} 38. Kf2 {[%emt 0:00:03]} h4 {[%emt 0:00:28]} 39. h3 {[%emt 0:00:31]} Rc2+ {[%emt 0:00:51]} 40. Kg1 {[%emt 0:00:09]} 1-0

[Event "Marshall CC FIDE Premier February 2024"]
[Site "New York"]
[Date "2024.02.04"]
[Round "3.1"]
[White "Pressman, Leif"]
[Black "Bortnyk, Mykola"]
[Result "0-1"]
[ECO "B08"]
[WhiteElo "2258"]
[BlackElo "2421"]
[Annotator "RC"]
[PlyCount "112"]
[EventDate "2024.02.02"]
[EventType "swiss"]
[EventCountry "USA"]
[SourceTitle "playchess.com"]
[Source "ChessBase"]
[SourceQuality "1"]
[TimeControl "5400+30"]

1. e4 {[%emt 0:25:58]} g6 {[%emt 0:00:20]} 2. d4 {[%emt 0:00:07]} Bg7 {[%emt 0:00:07]} 3. Nc3 {[%emt 0:00:55]} d6 {[%emt 0:00:29]} 4. Nf3 {[%emt 0:02:33]} c6 {[%emt 0:00:55]} 5. a4 {[%emt 0:00:17]} Bg4 {[%emt 0:04:21]} 6. Be2 {[%emt 0:01:48]} Nd7 {[%emt 0:00:52]} 7. O-O {[%emt 0:00:30]} Qc7 {[%emt 0:02:31]} 8. Be3 {[%emt 0:01:42]} Ngf6 {[%emt 0:00:28]} 9. h3 {[%emt 0:00:34]} Bxf3 {[%emt 0:00:11]} 10. Bxf3 {[%emt 0:00:02]} O-O {[%emt 0:00:22]} 11. a5 {[%emt 0:01:01]} b5 {[%emt 0:02:59]} 12. axb6 {[%emt 0:01:47]} axb6 {[%emt 0:00:30]} 13. Rxa8 {[%emt 0:02:30]} Rxa8 {[%emt 0:00:02]} 14. d5 {[%emt 0:00:14]} cxd5 {[%emt 0:04:10]} 15. exd5 {[%emt 0:06:08]} Ne5 {[%emt 0:02:40]} 16. Be2 {[%emt 0:00:21]} Nc4 {[%emt 0:01:07]} 17. Nb5 {[%emt 0:07:01]} Qc8 {[%emt 0:00:25]} 18. Bd4 {[%emt 0:00:29]} Ra5 {[%emt 0:06:05]} 19. b3 {[%emt 0:01:29]} Na3 {[%emt 0:02:01]} 20. Nxa3 {[%emt 0:02:13]} Rxa3 {[%emt 0:00:04]} 21. Bxb6 {[%emt 0:01:44]} Qb7 {[%emt 0:04:34]} 22. Bd4 {[%emt 0:00:51]} Qxd5 {[%emt 0:00:23]} 23. Bf3 {[%emt 0:04:35]} Qa5 {[%emt 0:01:15]} 24. Qe1 {[%emt 0:04:06]} Qxe1 {[%emt 0:01:19]} 25. Rxe1 {[%emt 0:00:02]} e6 {[%emt 0:00:30]} 26. Rd1 {[%emt 0:12:33]} Ra2 {[%emt 0:07:41]} 27. c4 {[%emt 0:01:17]} e5 {[%emt 0:00:13]} 28. Be3 {[%emt 0:06:19]} e4 {[%emt 0:02:49]} 29. Bg4 {[%emt 0:05:00]} h5 {[%emt 0:01:57]} 30. Bc8 {[%emt 0:00:15]} Ra8 {[%emt 0:00:05]} 31. Bb7 {[%emt 0:00:28]} Rb8 {[%emt 0:00:06]} 32. Bc6 {[%emt 0:03:03]} Rxb3 {[%emt 0:00:02]} 33. Bf4 {[%emt 0:02:51]} Rb4 {[%emt 0:05:22]} 34. Bb5 {[%emt 0:01:55]} d5 {[%emt 0:00:02]} 35. Bd6 {[%emt 0:00:45]} Rb3 {[%emt 0:00:02]} 36. Be5 {[%emt 0:02:23]} h4 {[%emt 0:06:48]} 37. Kf1 {[%emt 0:01:41]} Nh5 {[%emt 0:01:04]} 38. Bh2 {[%emt 0:01:23]} d4 {[%emt 0:00:15]} 39. Rc1 {[%emt 0:00:24]} d3 {[%emt 0:00:20]} 40. Bc6 {[%emt 0:00:13]} Bh6 {[%emt 0:01:28]} 41. Rd1 {[%emt 0:00:51]} f5 {[%emt 0:00:07]} 42. c5 {[%emt 0:00:22]} Rc3 {[%emt 0:00:15]} 43. Bd5+ {[%emt 0:00:01]} Kh7 {[%emt 0:00:05]} 44. Bd6 {[%emt 0:00:34]} Bf4 {[%emt 0:01:11]} 45. Be7 {[%emt 0:00:39]} Be5 {[%emt 0:01:51]} 46. c6 {[%emt 0:00:13]} Nf4 {[%emt 0:00:13]} 47. Ba2 {[%emt 0:00:35]} Rxc6 {[%emt 0:00:43]} 48. Bxh4 {[%emt 0:00:02]} Ne2 {[%emt 0:00:29]} 49. Bb3 {[%emt 0:00:41]} Rb6 {[%emt 0:00:09]} 50. Bc4 {[%emt 0:01:30]} Nc3 {[%emt 0:01:56]} 51. Ra1 {[%emt 0:00:01]} d2 {[%emt 0:00:14]} 52. Be2 {[%emt 0:00:05]} Nxe2 {[%emt 0:01:10]} 53. Ra7+ {[%emt 0:00:04]} Kh6 {[%emt 0:00:04]} 54. Kxe2 {[%emt 0:00:08]} g5 {[%emt 0:00:35]} 55. Ra5 {[%emt 0:02:10]} Bc3 {[%emt 0:00:06]} 56. Rc5 {[%emt 0:00:29]} Rb1 {[%emt 0:00:12]} 0-1

[Event "Marshall CC FIDE Premier February 2024"]
[Site "New York"]
[Date "2024.02.04"]
[Round "3.2"]
[White "Zeltsan, Joseph"]
[Black "Hughes, John L"]
[Result "1/2-1/2"]
[ECO "B40"]
[WhiteElo "2439"]
[BlackElo "2167"]
[Annotator "RC"]
[PlyCount "74"]
[EventDate "2024.02.02"]
[EventType "swiss"]
[EventCountry "USA"]
[SourceTitle "playchess.com"]
[Source "ChessBase"]
[SourceQuality "1"]
[TimeControl "5400+30"]

1. e4 {[%emt 0:00:01]} c5 {[%emt 0:00:49]} 2. Nf3 {[%emt 0:00:04]} e6 {[%emt 0:02:15]} 3. d4 {[%emt 0:00:03]} cxd4 {[%emt 0:00:09]} 4. Nxd4 {[%emt 0:00:02]} Bc5 {[%emt 0:00:11]} 5. Nb3 {[%emt 0:04:37]} Bb6 {[%emt 0:00:15]} 6. Nc3 {[%emt 0:00:05]} Ne7 {[%emt 0:00:20]} 7. Bf4 {[%emt 0:00:30]} d5 {[%emt 0:00:38]} 8. exd5 {[%emt 0:00:15]} Nxd5 {[%emt 0:01:58]} 9. Bb5+ {[%emt 0:09:25]} Nc6 {[%emt 0:03:03]} 10. Nxd5 {[%emt 0:00:11]} exd5 {[%emt 0:00:42]} 11. O-O {[%emt 0:01:43]} O-O {[%emt 0:00:55]} 12. Qd2 {[%emt 0:05:27]} Qf6 {[%emt 0:11:19]} 13. c3 {[%emt 0:00:47]} a6 {[%emt 0:07:25]} 14. Be2 {[%emt 0:20:08]} d4 {[%emt 0:19:27]} 15. c4 {[%emt 0:02:14]} Be6 {[%emt 0:01:32]} 16. Rac1 {[%emt 0:10:25]} h6 {[%emt 0:11:11]} 17. Bf3 {[%emt 0:03:09]} Rac8 {[%emt 0:05:33]} 18. c5 {[%emt 0:13:35]} Bc7 {[%emt 0:08:06]} 19. Bxc7 {[%emt 0:00:49]} Rxc7 {[%emt 0:00:14]} 20. Na5 {[%emt 0:00:49]} Ne5 {[%emt 0:07:14]} 21. Be4 {[%emt 0:00:13]} Bc8 {[%emt 0:00:52]} 22. b4 {[%emt 0:00:53]} Rd8 {[%emt 0:01:11]} 23. Nc4 {[%emt 0:16:43]} Nxc4 {[%emt 0:04:50]} 24. Rxc4 {[%emt 0:00:02]} Be6 {[%emt 0:00:10]} 25. Rcc1 {[%emt 0:00:03]} Bd5 {[%emt 0:00:36]} 26. Bxd5 {[%emt 0:02:18]} Rxd5 {[%emt 0:00:05]} 27. Qd3 {[%emt 0:00:04]} a5 {[%emt 0:05:15]} 28. Rfe1 {[%emt 0:00:36]} g6 {[%emt 0:00:29]} 29. a3 {[%emt 0:01:15]} Kg7 {[%emt 0:01:29]} 30. Kf1 {[%emt 0:01:31]} axb4 {[%emt 0:01:51]} 31. axb4 {[%emt 0:00:01]} b6 {[%emt 0:00:45]} 32. cxb6 {[%emt 0:01:12]} Qxb6 {[%emt 0:01:32]} 33. Rxc7 {[%emt 0:03:04]} Qxc7 {[%emt 0:00:04]} 34. g3 {[%emt 0:00:11]} Qc3 {[%emt 0:02:57]} 35. Qxc3 {[%emt 0:02:04]} dxc3 {[%emt 0:00:05]} 36. Rc1 {[%emt 0:00:17]} Rb5 {[%emt 0:00:12]} 37. Rxc3 {[%emt 0:00:04]} Rxb4 {[%emt 0:00:37]} 1/2-1/2